[Event "44th Indian Team Championship 2025"]
[Site "Gujarat"]
[Date "2025.03.06"]
[Round "2.12"]
[White "Sanket Chakravarty"]
[Black "Nandha Kumar K"]
[Result "1-0"]
[Annotator "TA"]
[ECO "A17"]
[WhiteElo "2326"]
[BlackElo "1846"]
[PlyCount "53"]
[EventDate "2025.03.03"]
[EventCountry "IND"]
[SourceTitle "playchess.com"]
[Source "ChessBase"]
[SourceQuality "1"]
[TimeControl "5400+30"]

{[%evp 9,53,4,24,9,24,10,24,24,63,-2,0,0,0,-60,-46,-52,-52,-70,-41,-45,-19,-58,-58,-70,-72,-83,-35,-33,0,0,10,1,47,53,29,24,37,34,45,40,26,-51,1043,1041,29997,29998]} 1. c4 {[%emt 0:00:03]} Nf6 {[%emt 0:06:03]} 2. Nf3 {[%emt 0:00:20]} e6 {[%emt 0:00:08]} 3. Nc3 {[%emt 0:00:17]} d5 {[%emt 0:00:07]} 4. e3 {[%emt 0:00:17]} Be7 {[%emt 0:00:33]} 5. b3 {[%emt 0:00:15]} c5 {[%emt 0:02:19]} 6. cxd5 {[%emt 0:03:54] A17: English Opening: 1...Nf6 with ...Bb4.} exd5 {[%emt 0:00:10]} 7. d4 {[%emt 0:02:09]} cxd4 {[%emt 0:00:05]} 8. Nxd4 {[%emt 0:00:43] White has an edge.} Bb4 {[%emt 0:10:30]} 9. Bd2 {[%emt 0:02:40]} (9. Bb2 $14) 9... Nc6 $146 {[%emt 0:03:45]} (9... O-O 10. Bd3 Nc6 11. O-O Ne5 12. Bc2 Neg4 13. h3 Bxc3 14. Bxc3 Qc7 15. hxg4 Nxg4 {1-0 Sarana,A (2685)-Pranesh,M (2493) Olympic Esports Prelims blitz 2023 (2.3)}) 10. Nxc6 {[%emt 0:11:47]} bxc6 {[%emt 0:00:17]} 11. a3 {[%emt 0:04:07]} ({White should play} 11. Bd3 $11) 11... Bd6 $15 {[%emt 0:05:47]} 12. Be2 {[%emt 0:01:47]} O-O {[%emt 0:02:50]} 13. O-O {[%emt 0:00:19]} Qe7 {[%emt 0:10:22]} 14. b4 {[%emt 0:01:49]} Bd7 {[%emt 0:07:27]} 15. Re1 {[%emt 0:05:57]} a5 {[%emt 0:05:08]} 16. bxa5 {[%emt 0:02:43]} Rxa5 {[%emt 0:02:17]} 17. a4 {[%emt 0:00:53][%cal Oc3b5]} Rfa8 {[%emt 0:07:39]} (17... Be5 $17) 18. Bf3 {[%emt 0:03:54]} Rc5 {[%emt 0:03:43] [#] aiming for ...Qe5.} 19. e4 {[%emt 0:09:28]} Qe5 {[%emt 0:11:47]} 20. g3 {[%emt 0:01:20] next exd5 is good for White. Successful Defense White} Rxc3 {[%emt 0:01:44]} (20... Qd4 $11) 21. exd5 $14 {[%emt 0:16:36]} Rxf3 $1 {[%emt 0:12:04]} 22. Rxe5 {[%emt 0:00:19]} Bxe5 {[%emt 0:00:08] A strong pair of Bishops.} 23. Qxf3 {[%emt 0:01:07]} Bxa1 {[%emt 0:00:30]} 24. dxc6 {[%emt 0:00:03]} Be6 {[%emt 0:02:46]} 25. c7 {[%emt 0:02:41]} (25. Qa3 $11 Be5 26. a5) 25... Rxa4 $2 {[%emt 0:01:31][%mdl 8192] [#]} (25... Nd5 $15) 26. Qc6 $18 {[%emt 0:03:23]} Bd7 {[%emt 0:03:19]} 27. c8=Q+ {[%emt 0:00:12] Weighted Error Value: White=0.23 (precise) /Black=0.66  Loses game:     	---       	Black=1      Mistake:       	White=3     	Black=2      Inaccurate:     	White=1     	Black=5      OK:         	White=8     	Black=5      Best:        	White=2     	---        Strong:       	---       	Black=1} 1-0

[Event "44th Indian Team Championship 2025"]
[Site "Gujarat"]
[Date "2025.03.06"]
[Round "2.13"]
[White "Sriansh Das"]
[Black "Balkishan, A.."]
[Result "1-0"]
[Annotator "TA"]
[ECO "B48"]
[WhiteElo "2286"]
[BlackElo "2119"]
[PlyCount "71"]
[EventDate "2025.03.03"]
[EventCountry "IND"]
[SourceTitle "playchess.com"]
[Source "ChessBase"]
[SourceQuality "1"]
[TimeControl "5400+30"]

{[%evp 15,70,0,35,6,29,0,15,7,21,0,4,0,0,0,6,-10,-4,-20,-15,-17,17,22,19,5,39,39,143,141,146,120,132,88,235,222,212,156,183,178,171,187,365,366,487,487,5214,5173,1895,1793,4931,4914,29996,29997,29997,29998,29998,29999,29999]} 1. e4 {[%emt 0:00:09]} c5 {[%emt 0:00:20]} 2. Nf3 {[%emt 0:00:04]} e6 {[%emt 0:00:06]} 3. d4 {[%emt 0:00:04]} cxd4 {[%emt 0:00:02]} 4. Nxd4 {[%emt 0:00:05]} Nc6 {[%emt 0:00:05]} 5. Nc3 {[%emt 0:00:17]} Qc7 {[%emt 0:00:02]} 6. Be3 {[%emt 0:00:22]} a6 {[%emt 0:01:17]} 7. Bd3 {[%emt 0:00:16]} Nf6 {[%emt 0:02:59]} 8. Qe2 $1 {[%emt 0:01:51][%mdl 4] outshines the older 8.0-0.} b5 {[%emt 0:02:28]} 9. Nxc6 {[%emt 0:04:53] B48: Sicilian: Taimanov: 5 Nc3 Qc7 6 Be3 a6 without Be2.} Qxc6 {[%emt 0:03:48]} 10. Bd4 {[%emt 0:08:36]} Bb7 {[%emt 0:04:42]} 11. f3 $146 {[%emt 0:04:51] The position is equal.} (11. O-O-O Rc8 12. Kb1 Qc7 13. e5 Nd5 14. Nxd5 Bxd5 15. Be4 Bxe4 16. Qxe4 Qc6 17. Rhe1 {0-1 Efroimski,M (2233)-Givon,A (2473) Rishon Le Ziyyon Fridman Memorial 2015 (6)}) 11... b4 {[%emt 0:06:12]} 12. Nb1 {[%emt 0:06:05]} Bc5 {[%emt 0:01:02]} 13. Qf2 {[%emt 0:01:21]} Bxd4 {[%emt 0:09:43]} 14. Qxd4 {[%emt 0:00:05]} a5 {[%emt 0:01:18]} 15. Nd2 {[%emt 0:01:00]} d5 {[%emt 0:06:31]} 16. O-O {[%emt 0:02:26]} O-O {[%emt 0:02:28]} 17. a3 {[%emt 0:12:53]} e5 {[%emt 0:13:15]} 18. Qxe5 {[%emt 0:06:40]} Qb6+ {[%emt 0:01:56]} 19. Kh1 {[%emt 0:00:29]} Rae8 {[%emt 0:05:33]} 20. Qf4 {[%emt 0:02:45]} Re6 {[%emt 0:02:20] [#]} ({Better is} 20... bxa3 $14 21. Rxa3 Ba8) 21. e5 $1 $16 {[%emt 0:12:23]} Nh5 {[%emt 0:04:28]} 22. Qg5 {[%emt 0:05:42]} g6 {[%emt 0:01:05]} 23. Rae1 {[%emt 0:10:05]} Rfe8 {[%emt 0:01:38] [#] Loses the game.} (23... Ba6 $16) 24. f4 $1 $18 {[%emt 0:00:48]} f6 {[%emt 0:04:59]} 25. Qg4 {[%emt 0:02:24]} fxe5 {[%emt 0:03:36]} 26. fxe5 {[%emt 0:05:44]} bxa3 {[%emt 0:07:55]} 27. bxa3 {[%emt 0:00:19]} Qc5 $2 {[%emt 0:00:12]} (27... R6e7 {was worth a try.} 28. Nf3 Bc8) 28. Nf3 {[%emt 0:04:31] Ng5 would now be deadly.} Qxa3 {[%emt 0:00:46]} 29. Ng5 {[%emt 0:01:41]} Rxe5 {[%emt 0:02:39]} (29... Bc8 $142 30. Nxh7 Qc3 31. Nf6+ (31. Bxg6 Rxe5 32. Bf5+ Ng7 $18) 31... Rxf6 (31... Nxf6 32. Qxg6+ Kf8 33. exf6 $18) 32. exf6 Rxe1 (32... Bxg4 $2 33. f7+ Kg7 34. fxe8=Q $18) 33. Qxg6+ Kf8 34. Qh6+ (34. Qxh5 Rxf1+ 35. Bxf1 Qxf6 $11) 34... Kf7 35. Qxh5+ Ke6 36. Qe8+ Kd6 37. Rxe1 (37. Qxe1 Qxe1 38. Rxe1 Be6 $18) 37... Bd7 38. Qe7+ Kc6) 30. Rxe5 {[%emt 0:01:32]} ({Worse is} 30. Qd7 Qe7 (30... Rxe1 31. Qxh7#) 31. Qxe7 R5xe7 32. Rxe7 Rxe7 $15) 30... Rxe5 {[%emt 0:00:04] [#]} 31. Nxh7 $1 {[%emt 0:00:23][%mdl 512]} Qd6 {[%emt 0:01:28]} (31... Qxd3 32. cxd3) 32. Bxg6 {[%emt 0:01:15] Bf7+ would kill now.} (32. Qxg6+ $2 Qxg6 33. Bxg6 Nf4 34. Nf6+ (34. Rxf4 $2 {is a self mate.} Re1+) 34... Kg7 $19) (32. Nf6+ Nxf6 33. Qxg6+ Kh8 $14) 32... Ba6 {[%emt 0:06:26]} 33. Bf7+ {[%emt 0:01:13] White mates.} Kxh7 {[%emt 0:00:14][%cal Bg8h7,Bh7h6,Bh6g5][%mdl 32]} 34. Qg8+ {[%emt 0:00:04]} Kh6 {[%emt 0:00:18]} 35. Qh8+ {[%emt 0:00:04]} Kg5 {[%emt 0:00:04]} 36. Qxh5# {[%emt 0:00:04] Weighted Error Value: White=0.11 (very precise) /Black=0.88  Mistake:       	---       	Black=4      Inaccurate:     	White=2     	Black=3      OK:         	White=6     	Black=6      Best:        	White=1     	---        Strong:       	White=2     	---} 1-0

[Event "44th Indian Team Championship 2025"]
[Site "Gujarat"]
[Date "2025.03.06"]
[Round "2.14"]
[White "Prashanth J Naik"]
[Black "Sahoo, Utkal Ranjan"]
[Result "0-1"]
[Annotator "TA"]
[ECO "D02"]
[WhiteElo "1942"]
[BlackElo "2268"]
[PlyCount "112"]
[EventDate "2025.03.03"]
[EventCountry "IND"]
[SourceTitle "playchess.com"]
[Source "ChessBase"]
[SourceQuality "1"]
[TimeControl "5400+30"]

{[%evp 11,112,-1,-5,-6,0,0,-3,-17,0,14,8,-17,6,9,0,-22,-8,-23,-35,-46,-39,-47,-22,-38,-40,-45,-33,-75,-72,-91,-83,-129,-129,-119,-124,-137,-123,-137,-133,-122,-125,-144,-144,-150,-153,-286,-250,-371,-364,-349,-290,-284,-218,-218,-205,-254,-216,-278,-278,-251,-213,-277,-268,-291,-299,-293,-229,-241,-204,-199,-141,-84,-103,-91,-100,-193,-201,-232,-75,-377,-204,-427,-423,-466,-75,-75,-75,-206,-26,-584,-438,-29973,-29974,-29967,-29968,-29982,-29983,-29983,-29984,-29982,-29985,-29987,-29988]} 1. d4 {[%emt 0:00:12]} e6 {[%emt 0:00:22]} 2. Bf4 {[%emt 0:01:27]} d5 {[%emt 0:00:48]} 3. e3 {[%emt 0:00:15]} Nf6 {[%emt 0:00:11]} 4. Nf3 {[%emt 0:00:20]} Bd6 {[%emt 0:00:15]} 5. Ne5 {[%emt 0:01:00]} O-O {[%emt 0:02:57]} 6. Nd2 {[%emt 0:00:16]} c5 {[%emt 0:06:32]} 7. c3 {[%emt 0:00:16] D02: 1 d4 d5 2 Nf3 sidelines, including 2...Nf6 3 g3 and 2...Nf6 3 Bf4.} b6 {[%emt 0:02:12]} 8. h4 {[%emt 0:15:01][%cal Bh2h4,Bh4h5,Bh5h6][%mdl 32] is recently more successful than 8.Bd3.} Qc7 {[%emt 0:04:30]} 9. h5 {[%emt 0:00:54] The position is equal.} Nc6 {[%emt 0:03:17][%cal Rc6e5]} 10. h6 {[%emt 0:02:12] Hoping for hxg7.} g6 {[%emt 0:04:30]} 11. Ndf3 {[%emt 0:03:19]} (11. Nxc6 {simplifies} Qxc6 12. Qf3 Ne8 13. a4) 11... Nd7 {[%emt 0:04:03]} 12. Nxc6 {[%emt 0:13:24]} Qxc6 {[%emt 0:00:29]} 13. Ne5 $146 {[%emt 0:11:39]} ({Predecessor:} 13. Bxd6 Qxd6 14. Bb5 a6 15. Be2 e5 16. dxe5 Nxe5 17. Nxe5 Qxe5 18. Qb3 d4 19. cxd4 cxd4 20. Qxb6 {1-0 Petkov,M (2496)-Toma,R (2386) ROM GP Final GpA rapid 2023 (2)}) 13... Nxe5 {[%emt 0:03:30] A sharp opening} 14. dxe5 {[%emt 0:01:28]} Be7 {[%emt 0:00:34]} 15. Be2 {[%emt 0:00:29]} Bb7 {[%emt 0:01:07]} 16. O-O {[%emt 0:00:30]} Rfd8 {[%emt 0:00:52]} 17. a4 {[%emt 0:05:40]} a6 {[%emt 0:15:28]} 18. Qd2 {[%emt 0:04:40]} Qe8 {[%emt 0:04:44]} 19. Rfd1 {[%emt 0:05:26]} Qf8 {[%emt 0:05:52]} 20. Qc2 {[%emt 0:02:06]} Bc6 {[%emt 0:07:59]} (20... g5 $6 21. Bg3 $11) 21. Bd3 {[%emt 0:13:50]} (21. Bf3 $142) 21... c4 $17 {[%emt 0:02:45]} 22. Be2 {[%emt 0:01:09][%cal Oe3e4]} g5 {[%emt 0:00:21]} 23. Bg3 {[%emt 0:00:16]} Qxh6 {[%emt 0:00:08]} 24. Bf3 {[%emt 0:02:18]} b5 {[%emt 0:07:35]} 25. axb5 {[%emt 0:01:08]} axb5 {[%emt 0:00:04]} 26. b4 {[%emt 0:00:25]} Qg6 {[%emt 0:05:32]} 27. Qe2 {[%emt 0:01:50]} f5 {[%emt 0:00:53]} 28. Qb2 {[%emt 0:04:34]} (28. exf6 $17 Bxf6 29. Rac1) 28... h5 $19 {[%emt 0:01:56]} 29. Rxa8 {[%emt 0:01:41]} (29. Bh2 $142) 29... Rxa8 {[%emt 0:00:16]} (29... Bxa8 30. Ra1 $19) 30. Be2 {[%emt 0:01:35]} h4 {[%emt 0:01:14]} 31. Bh2 {[%emt 0:00:03]} Qe8 {[%emt 0:04:14]} 32. Ra1 {[%emt 0:01:42]} Qb8 {[%emt 0:00:53]} 33. Ra3 {[%emt 0:01:17]} Bd8 {[%emt 0:00:34]} 34. g4 {[%emt 0:02:42]} hxg3 {[%emt 0:01:39]} 35. Bxg3 {[%emt 0:00:05]} Bc7 {[%emt 0:03:59]} 36. f4 {[%emt 0:01:02]} gxf4 {[%emt 0:00:59]} 37. exf4 {[%emt 0:01:31]} Bb6+ {[%emt 0:00:48]} 38. Kf1 {[%emt 0:01:06] [#]} d4 $1 {[%emt 0:02:03][%mdl 512]} 39. cxd4 {[%emt 0:00:32]} Rxa3 {[%emt 0:00:24]} 40. Qxa3 {[%emt 0:00:03]} Bxd4 {[%emt 0:00:12] Black has a queen side majority} (40... Qd8 $19 41. Bf2 Qd5 (41... Bxd4 $2 42. Qg3+ Kf8 43. Qh2 $18) 42. Qg3+ Kf8) 41. Bf2 $17 {[%emt 0:00:57]} Bxf2 {[%emt 0:02:40]} 42. Kxf2 {[%emt 0:00:02][%mdl 4096] Endgame KQB-KQB. Black is a pawn up.} Qb6+ {[%emt 0:00:18]} 43. Kf1 {[%emt 0:00:01]} (43. Qe3 $17 Qxe3+ 44. Kxe3) 43... Kf8 {[%emt 0:01:30]} 44. Qh3 {[%emt 0:00:18] [#]} Ke8 $2 {[%emt 0:00:35]} (44... Qd4 $1 $19 {[%cal Rd4f4]} 45. Ke1 Qd5 (45... Qxf4 $2 46. Qh8+ Ke7 47. Qf6+ Kd7 48. Qf7+ Kd8 49. Qxe6 $17)) 45. Qh7 $2 {[%emt 0:01:44][%mdl 8192]} (45. Qh8+ $17 {is tougher.} Kd7 46. Qg7+ Kc8 (46... Ke8 47. Qf6 $17) 47. Qf8+ Kb7 (47... Qd8 48. Qxd8+ Kxd8 49. Ke1 $15) 48. Qe7+ Ka6 49. Qd6 (49. Qxe6 $2 Bg2+ 50. Kxg2 Qxe6 $19)) 45... Kd8 {[%emt 0:00:10]} (45... Qd4 $142 46. Qg6+ Kd8 47. Qxe6 Qxf4+ 48. Ke1 Qg3+ 49. Kd1 Qb3+ 50. Ke1 Qxb4+ 51. Kf1 Qb1+ 52. Kf2 Qe4 53. Qd6+ Kc8 54. Qf8+ Kb7 55. Qe7+ Ka6 56. Qa3+ Kb6) 46. Qg8+ $2 {[%emt 0:00:27] [#]} (46. Qh4+ Kc8 47. Qf6) 46... Kc7 $1 $19 {[%emt 0:00:05]} 47. Qf7+ {[%emt 0:00:31]} (47. Qxe6 $2 Bg2+ 48. Kxg2 Qxe6) 47... Kb8 $2 {[%emt 0:00:12]} (47... Bd7 $19 {and Black stays clearly on top.} 48. Qe7 c3) 48. Qf8+ $17 {[%emt 0:00:11]} (48. Qxe6 $2 Bg2+ 49. Kxg2 Qxe6 $19) 48... Kb7 {[%emt 0:00:13] and ...c3 should not be overlooked} 49. Qd6 {[%emt 0:00:49]} (49. Qe7+ $17 {was the only chance.} Ka6 50. Qd6 (50. Qxe6 $2 Bg2+ 51. Kxg2 Qxe6 $19)) 49... c3 $2 {[%emt 0:01:26]} ({Black should play} 49... Qe3 $19 50. Qe7+ Ka6 51. Qxe6 Qxf4+ 52. Ke1 Kb6) 50. Qe7+ $2 {[%emt 0:00:02][%mdl 8192]} (50. Qd3 $1 $11 {and White is okay.}) 50... Ka6 {[%emt 0:00:22] ( -> ...c2)} 51. Qd6 {[%emt 0:00:58]} (51. Qxe6 Bg2+ 52. Kxg2 Qxe6 53. Bd3 Qd5+ 54. Kg3 Qxd3+ 55. Kh4 c2 (55... Qd8+ {is a self mate.} 56. Kg3 c2 57. Kh2 c1=Q 58. Kg2 Qd5+ 59. Kh3 Qdh1+ 60. Kg3 Qcg1#) 56. Kg5 c1=Q (56... c1=R 57. Kf6 Rc6+ 58. e6 Qd5 59. Kg7 Rxe6 60. Kh8 Rg6 61. Kh7 Qg8#) 57. Kg6 Qc6+ (57... Qxf4 58. Kg7 Qdg3+ 59. Kf8 Qxe5 60. Kf7 Qgg7#) 58. e6 Qxe6+ 59. Kh5 Qh3+ 60. Kg5 Qhh6#) (51. Bd3 $19 Qe3 52. Qd6 Qxf4+ 53. Ke1 Qd2+ 54. Kf1 Qg2+ 55. Ke1) 51... c2 {[%emt 0:00:29] Black mates.} 52. Qd2 {[%emt 0:00:29]} Be4 {[%emt 0:00:13]} 53. Qc3 {[%emt 0:00:16]} Qc6 {[%emt 0:00:12]} 54. Qa3+ {[%emt 0:00:42]} Kb7 {[%emt 0:00:22]} 55. Qc1 {[%emt 0:00:03]} Qc3 {[%emt 0:00:44]} 56. Bxb5 {[%emt 0:00:42]} Qxb4 {[%emt 0:00:06] Weighted Error Value: White=0.57/Black=0.34  Loses game:     	White=2     	---        Missed win:     	---       	Black=2      Mistake:       	White=7     	Black=3      Inaccurate:     	White=2     	Black=1      OK:         	White=9     	Black=20     Best:        	White=1     	Black=1      Strong:       	---       	Black=1} 0-1

[Event "44th Indian Team Championship 2025"]
[Site "Gujarat"]
[Date "2025.03.06"]
[Round "2.15"]
[White "Sidhant, Mohapatra"]
[Black "Siddhanth Poonja"]
[Result "1-0"]
[Annotator "TA"]
[ECO "B30"]
[WhiteElo "2382"]
[BlackElo "2065"]
[PlyCount "59"]
[EventDate "2025.03.03"]
[EventCountry "IND"]
[SourceTitle "playchess.com"]
[Source "ChessBase"]
[SourceQuality "1"]
[TimeControl "5400+30"]

{[%evp 9,59,0,4,7,64,62,101,40,30,37,44,20,20,15,72,70,171,164,163,183,113,74,74,93,269,269,273,274,268,258,463,379,838,818,1002,975,1177,1141,1474,1472,1450,1408,2047,2347,29992,29993,29993,29990,29996,29997,29997,29998]} 1. e4 {[%emt 0:00:09]} c5 {[%emt 0:00:15]} 2. Nf3 {[%emt 0:00:16]} Nc6 {[%emt 0:00:11]} 3. Bb5 {[%emt 0:00:15]} Nf6 {[%emt 0:00:14]} 4. Nc3 {[%emt 0:03:32]} Nd4 {[%emt 0:00:35]} 5. Bc4 {[%emt 0:00:29]} e6 {[%emt 0:05:42][%cal Be7e6,Be6d5][%mdl 32]} 6. O-O {[%emt 0:07:00] B30: Sicilian: 2...Nc6 3 Bb5, lines without ...g6.} d5 {[%emt 0:06:19] Against d3} (6... a6 $11) 7. exd5 $14 {[%emt 0:05:15]} exd5 {[%emt 0:01:46]} 8. Nxd4 {[%emt 0:01:26]} ({White should play} 8. Nxd5 $16 {aiming for Re1+.} Nxd5 9. Nxd4) 8... dxc4 {[%emt 0:00:00]} 9. Nf3 {[%emt 0:01:38][%cal Bd4f3,Bf3e5,Be5c4][%mdl 32]} Be7 {[%emt 0:09:46]} 10. Ne5 $146 {[%emt 0:08:22]} ({Predecessor:} 10. Qe2 Bg4 11. h3 Bh5 12. Re1 Bxf3 13. Qxf3 O-O 14. Qxb7 Bd6 15. Qb5 Re8 16. Re3 {1-0 Dwilewicz,K (2115)-Khrapko,M (2188) Speed Chess (Women) Play In 2 blitz 2024 (4)}) 10... Be6 {[%emt 0:04:28]} 11. Qe2 {[%emt 0:00:15]} Bd6 {[%emt 0:08:41]} (11... a6 $11 {keeps the balance.}) 12. Nxc4 $16 {[%emt 0:18:49]} Bxh2+ {[%emt 0:01:51]} 13. Kxh2 $18 {[%emt 0:00:03]} Ng4+ {[%emt 0:00:07] [#]} 14. Kg3 $1 {[%emt 0:00:05]} (14. Kg1 $2 Qh4 15. Nd6+ Kf8 $19) 14... h5 {[%emt 0:00:05]} (14... Kf8 $18 15. d3 h5) 15. d3 {[%emt 0:01:47]} h4+ {[%emt 0:10:23]} 16. Kh3 {[%emt 0:00:24]} Qb8 {[%emt 0:00:17] A mistake that costs the game.} (16... O-O $16 {keeps fighting.}) 17. f4 {[%emt 0:00:23][%cal Bf2f4,Bf4f5][%mdl 32]} Ne3+ {[%emt 0:06:03]} 18. Kh2 {[%emt 0:00:11]} Nxf1+ {[%emt 0:00:04]} 19. Qxf1 {[%emt 0:00:06]} g5 $2 {[%emt 0:01:45]} (19... Kf8 20. Be3 Qc7) 20. Ne4 {[%emt 0:05:30][%cal Bc3e4,Be4f6,Bf6d7][%mdl 32] [#]} g4 $2 {[%emt 0:02:37]} (20... Bxc4 21. dxc4 Qc7) 21. Ncd6+ {[%emt 0:00:38]} Kd7 {[%emt 0:00:10][%cal Be8d7,Bd7c6,Bc6b6,Bb6a5,Ba5a6][%mdl 32]} 22. f5 {[%emt 0:00:26]} ({Not} 22. Nxc5+ Kxd6 23. Nxe6 g3+ (23... Kxe6 24. Qe2+ Kd6 25. Qe5+ Kc6 26. Qe4+ Kd7 27. Qd5+ Qd6 28. Qxb7+ Qc7 29. Qd5+ Qd6 30. Qxf7+ Qe7 31. Qd5+ Qd6 32. Qf7+ Qe7 33. Qxe7+ Kxe7 34. Bd2 $14) 24. Kh3 fxe6 $11 (24... Kxe6 25. f5+ Kd7 26. Qf3 $14)) 22... g3+ {[%emt 0:01:02]} 23. Kh3 {[%emt 0:02:56]} Bd5 {[%emt 0:00:14]} 24. Nf6+ {[%emt 0:00:18]} Kc6 {[%emt 0:00:03]} 25. Bf4 {[%emt 0:00:33]} Qf8 {[%emt 0:00:18]} 26. c4 {[%emt 0:00:53][%cal Bc2c4,Bc4d5][%mdl 32]} Qg7 {[%emt 0:00:05]} 27. cxd5+ {[%emt 0:00:15] White mates.} Kb6 {[%emt 0:00:04]} 28. Nd7+ {[%emt 0:00:16]} Ka5 {[%emt 0:00:15]} 29. Bd2+ {[%emt 0:00:42]} Ka6 {[%emt 0:00:09]} 30. d4+ {[%emt 0:00:07] Weighted Error Value: White=0.10 (very precise) /Black=1.21  Loses game:     	---       	Black=1      Mistake:       	White=1     	Black=6      Inaccurate:     	White=1     	Black=1      OK:         	White=1     	Black=3      Best:        	White=6     	Black=3      Strong:       	White=1     	---} 1-0

[Event "44th Indian Team Championship 2025"]
[Site "Gujarat"]
[Date "2025.03.06"]
[Round "2.16"]
[White "Gavi, Siddayya"]
[Black "Nayak Rajesh"]
[Result "1/2-1/2"]
[Annotator "TA"]
[ECO "B57"]
[WhiteElo "1878"]
[BlackElo "2278"]
[PlyCount "115"]
[EventDate "2025.03.03"]
[EventCountry "IND"]
[SourceTitle "playchess.com"]
[Source "ChessBase"]
[SourceQuality "1"]
[TimeControl "5400+30"]

{[%evp 15,115,35,45,8,21,0,8,0,0,0,0,-21,-28,-54,-37,-65,-62,-65,-45,-49,-51,-50,-48,-47,-47,-43,-6,-15,-14,-11,0,-2,0,-5,0,-21,-21,-17,-20,-24,-20,-24,-43,-23,-20,-33,0,-8,-5,-8,0,0,0,0,0,0,0,0,0,0,0,0,0,0,0,0,0,0,0,0,7,7,45,49,49,0,0,-11,0,-8,-8,-8,-8,-8,0,-11,0,0,0,0,0,0,0,0,0,0,0,0,0,0,0,0]} 1. e4 {[%emt 0:00:27]} c5 {[%emt 0:00:26]} 2. Nf3 {[%emt 0:00:07]} Nc6 {[%emt 0:00:05]} 3. d4 {[%emt 0:00:17]} cxd4 {[%emt 0:00:06]} 4. Nxd4 {[%emt 0:00:10]} Nf6 {[%emt 0:00:06]} 5. Nc3 {[%emt 0:00:08]} d6 {[%emt 0:00:05]} 6. Bc4 {[%emt 0:01:45]} Qb6 {[%emt 0:01:49]} 7. Nb3 {[%emt 0:00:55]} e6 {[%emt 0:01:48]} 8. O-O {[%emt 0:02:24]} a6 {[%emt 0:01:53]} 9. Re1 {[%emt 0:04:23] B57: Classical Sicilian: Sozin with 6...Qb6.} Be7 {[%emt 0:02:20]} 10. Bf4 $146 {[%emt 0:03:32]} (10. a4 Qc7 11. Bf1 O-O 12. a5 Bd7 13. Be3 Ne5 14. Nd2 Rac8 15. f4 Ng6 16. Nf3 Qb8 {1-0 Vila Gazquez,X (2472)-Panelo Munoz,M (2327) Santa Coloma op rapid 8th 2015 (4)}) 10... O-O {[%emt 0:07:30]} 11. Qd2 {[%emt 0:05:31]} (11. Bxd6 Rd8 12. e5 Nxe5 13. Bxe7 Rxd1 14. Raxd1 Nfd7 $15 (14... Nxc4 15. Rd8+ $11)) 11... Rd8 {[%emt 0:00:54]} 12. Rad1 {[%emt 0:01:36]} Qc7 {[%emt 0:03:30]} 13. Bf1 {[%emt 0:05:52]} (13. a4 $5) 13... b5 {[%emt 0:01:07]} 14. a4 {[%emt 0:04:52]} b4 {[%emt 0:06:30]} 15. Na2 {[%emt 0:02:26]} e5 {[%emt 0:09:08]} 16. Bg5 {[%emt 0:01:34]} Be6 {[%emt 0:01:03]} 17. Bxf6 {[%emt 0:00:27]} Bxf6 {[%emt 0:00:25]} 18. Nxb4 {[%emt 0:00:40]} Nxb4 {[%emt 0:09:05]} 19. Qxb4 {[%emt 0:00:15]} Qxc2 {[%emt 0:00:12]} 20. Na5 {[%emt 0:02:28][%cal Od1c1] [#] And now Rc1! would win.} Rdb8 {[%emt 0:04:17]} 21. Qxd6 {[%emt 0:02:50]} Qxa4 {[%emt 0:16:58]} ({Much worse is} 21... Rxb2 22. Re2 Qc3 23. Rxb2 Qxb2 24. Nc6 $16 (24. Bxa6 Qc2 $15)) 22. Ra1 {[%emt 0:02:46]} Qb4 {[%emt 0:02:34]} 23. Qxb4 {[%emt 0:00:40]} Rxb4 {[%emt 0:00:04]} 24. b3 {[%emt 0:00:18] White is weak on the dark squares} g6 {[%emt 0:01:17][%cal Og8g7]} (24... Bxb3 $2 25. Reb1 $18) 25. Ra3 {[%emt 0:01:11]} Kg7 {[%emt 0:04:52]} 26. g3 {[%emt 0:02:37]} Be7 {[%emt 0:01:56]} 27. Raa1 {[%emt 0:01:01]} Bc5 {[%emt 0:01:19]} (27... Bxb3 $2 {loses.} 28. Nc6 $18) 28. Kg2 {[%emt 0:08:32]} Bd4 {[%emt 0:04:37]} 29. Ra3 {[%emt 0:01:31]} Bc3 {[%emt 0:01:55] A strong pair of Bishops.} 30. Re3 {[%emt 0:00:15]} Bd2 {[%emt 0:01:57][%cal Od2c1] [#]} 31. Rd3 {[%emt 0:02:14]} Bc1 {[%emt 0:00:30]} 32. Ra1 {[%emt 0:00:28]} Rc8 {[%emt 0:01:07]} 33. Nc4 {[%emt 0:01:25]} Bxc4 {[%emt 0:01:58]} 34. bxc4 {[%emt 0:00:17]} Rbxc4 {[%emt 0:00:23]} 35. Rxa6 {[%emt 0:00:38]} Rxe4 {[%emt 0:00:45]} 36. Ra7 {[%emt 0:00:41] Wards off Rc7} Rd4 {[%emt 0:04:56]} 37. Rf3 {[%emt 0:00:10]} Rf8 {[%emt 0:00:06]} 38. Rc7 {[%emt 0:00:13]} e4 {[%emt 0:00:14]} 39. Rb3 {[%emt 0:01:02]} Bd2 {[%emt 0:01:01]} 40. Rbb7 {[%emt 0:00:52]} Rd6 {[%emt 0:06:41]} 41. Bc4 {[%emt 0:01:23][%cal Rc4f7]} Rf6 {[%emt 0:00:05]} 42. Re7 {[%emt 0:00:25]} e3 {[%emt 0:02:06]} 43. fxe3 {[%emt 0:00:15]} Be1 {[%emt 0:00:02]} 44. e4 {[%emt 0:00:39]} Rf2+ {[%emt 0:00:26]} 45. Kh3 {[%emt 0:01:28]} (45. Kg1 $14) 45... h5 $11 {[%emt 0:00:24] The position is equal.} 46. Rb1 {[%emt 0:03:58]} g5 {[%emt 0:02:04] ...g4+ is the strong threat. Opposite bishops and equal position} 47. g4 {[%emt 0:00:54]} hxg4+ {[%emt 0:00:20]} 48. Kxg4 {[%emt 0:00:03]} Rf4+ {[%emt 0:00:55]} 49. Kh3 $1 {[%emt 0:01:06]} Bd2 {[%emt 0:00:36]} 50. Rf1 {[%emt 0:00:16]} Rh4+ {[%emt 0:00:06]} 51. Kg2 {[%emt 0:00:37]} Bf4 {[%emt 0:00:18]} 52. h3 {[%emt 0:00:22]} Rh6 {[%emt 0:00:14]} 53. e5 {[%emt 0:00:21]} Rc6 {[%emt 0:00:12]} 54. Bb3 {[%emt 0:00:39]} Kg6 {[%emt 0:00:26]} 55. h4 {[%emt 0:00:18]} Rc5 {[%emt 0:01:22]} 56. hxg5 {[%emt 0:00:14]} Kxg5 {[%emt 0:00:08]} 57. Rxf7 {[%emt 0:00:24]} Rxf7 {[%emt 0:00:17]} 58. Bxf7 {[%emt 0:00:03] Weighted Error Value: White=0.06 (flawless) /Black=0.05 (flawless)   Mistake:       	White=1     	---        Inaccurate:     	White=2     	Black=2      OK:         	White=28    	Black=19     Best:        	White=1     	Black=1      Strong:       	White=1     	---} 1/2-1/2